fUSD/lending_fUSD_20241221
["ID","MTS","AMOUNT","RATE_DAILY","PERIOD"]
[346154385,1734757854176,-500.0,0.00021973,2]
[346154386,1734757854186,-897.45,0.00021973,2]
[346154387,1734757854364,-939.21,0.00021973,2]
[346154388,1734757854374,-500.0,0.00021973,2]
[346154389,1734757854383,-503.01323885,0.00021973,2]
[346154390,1734757854393,-1265.66,0.00021973,2]
[346154391,1734757854402,-821.38,0.00021973,2]
[346154392,1734757854412,-1042.15,0.00021973,2]
[346154393,1734757854421,-635.08,0.00021973,2]
[346154394,1734757854431,-500.0,0.00021973,2]
[346154395,1734757854440,-500.0,0.00021973,2]
[346154396,1734757854449,-500.0,0.00021973,2]
[346154397,1734757854459,-1427.38,0.00021973,2]
[346154398,1734757854468,-500.0,0.00021973,2]
[346154399,1734757854477,-500.0,0.00021973,2]
[346154400,1734757854486,-500.0,0.00021973,2]
[346154401,1734757854495,-500.0,0.00021973,2]
[346154402,1734757854505,-500.0,0.00021973,2]
[346154403,1734757854515,-1159.47,0.00021973,2]
[346154404,1734757854524,-500.0,0.00021973,2]
[346154405,1734757854533,-224.19268296,0.00021973,2]
[346154406,1734757854542,-500.0,0.00021973,2]
[346154407,1734757854551,-500.0,0.00021973,2]
[346154408,1734757854560,-500.0,0.00021973,2]
[346154409,1734757854571,-500.0,0.00021973,2]
[346154410,1734757854580,-1280.35,0.00021973,2]
[346154411,1734757854589,-1873.84,0.00021973,2]
[346154412,1734757854599,-4543.86816943,0.00021973,2]
[346154413,1734758428416,-1359.62163035,0.00018597,2]
[346154414,1734758428437,-292.89219037,0.00018597,2]
[346154415,1734758428457,-1646.56,0.00018696,2]
[346154416,1734758428478,-333.81,0.00018697,2]
[346154417,1734758428501,-866.61,0.00018697,2]
[346154418,1734758428521,-500.0,0.00019518,2]
[346154419,1734758428754,-500.0,0.00019518,2]
[346154420,1734758428785,-900.0,0.00019518,2]
[346154421,1734758461926,800.0,0.00019518,2]
[346154422,1734758484050,500.0,0.00019518,2]
[346154423,1734758502533,153.0,0.00019984,2]
[346154424,1734758502737,153.0,0.00019984,2]
[346154425,1734758504405,156.89,0.00010137,2]
[346154427,1734758512000,153.0,0.00019984,2]
[346154428,1734758512823,153.0,0.00019984,2]
[346154429,1734758563666,153.0,0.00019984,2]
[346154430,1734758564506,153.0,0.00019984,2]
[346154431,1734758569232,153.0,0.00019984,2]
[346154432,1734758569443,153.0,0.00019984,2]
[346154433,1734758630842,153.0,0.00019984,2]
[346154434,1734758631151,153.0,0.00019984,2]
[346154435,1734758635991,153.0,0.00019984,2]
[346154436,1734758636162,153.0,0.00019984,2]
[346154437,1734758682702,153.0,0.00019984,2]
[346154438,1734758682905,153.0,0.00019984,2]
[346154439,1734758687553,1.61617928,0.00019984,2]
[346154440,1734758773799,-151.38382072,0.00019984,2]
[346154441,1734758773825,-153.0,0.00019984,2]
[346154442,1734758773852,-153.0,0.00019984,2]
[346154443,1734758773876,-153.0,0.00019984,2]
[346154444,1734758773901,-153.0,0.00019984,2]
[346154445,1734758773923,-153.0,0.00019984,2]
[346154446,1734758788144,1658.02869799,0.000189,2]
[346154447,1734758800736,7425.58748129,0.0002,2]
[346154448,1734758800757,10000.0,0.0002,2]
[346154449,1734758800780,29418.41251871,0.0002,2]
[346154462,1734758863249,3821.3176667,0.0002,2]
[346154463,1734758901626,284.54961017,0.000199,2]
[346154464,1734758904227,159.94,0.00016122,2]
[346154465,1734758910919,2609.89044794,0.0001,2]
[346154466,1734758911323,13705.88975648,0.0002,2]
[346154484,1734759031608,-166.66666666,0.00019418,2]
[346154486,1734759031619,-491.2,0.0001948,2]
[346154487,1734759031628,-493.08,0.00019501,2]
[346154491,1734759031638,-653.01409295,0.00019518,2]
[346154494,1734759031701,-146.98590705,0.00019518,2]
[346154495,1734759031711,-491.08,0.00019518,2]
[346154496,1734759031720,-493.24,0.00019518,2]
[346154497,1734759031729,-941.75268998,0.000199,2]
[346154498,1734759031739,-86355.53639886,0.0002,2]
[346154499,1734759031749,-941.75268996,0.00020005,2]
[346154500,1734759031760,-156.79,0.00020042,2]
[346154501,1734759031770,-1672.811,0.00020091,2]
[346154502,1734759031780,-3621.09,0.00020106,2]
[346154503,1734759031789,-200.0,0.0002013,2]
[346154504,1734759031801,-250.0,0.00020139,2]
[346154505,1734759031810,-156.79,0.00020142,2]
[346154506,1734759031820,-473.9,0.00020152,2]
[346154507,1734759031829,-159.94,0.00020152,2]
[346154508,1734759031839,-250.0,0.00020164,2]
[346154509,1734759031848,-4349.11,0.00020183,2]
[346154510,1734759031858,-190.92,0.00020229,2]
[346154511,1734759031868,-150.0,0.00020244,4]
[346154512,1734759031878,-150.0,0.00020244,4]
[346154513,1734759031887,-150.0,0.00020244,4]
[346154514,1734759031897,-151.63961921,0.00020244,4]
[346154515,1734759031906,-250.0,0.00020255,2]
[346154516,1734759031916,-1500.0,0.00020275,2]
[346154517,1734759031926,-1000.0,0.00020291,2]
[346154518,1734759031935,-1500.0,0.00020309,2]
[346154519,1734759031945,-1040.5,0.00020439,2]
[346154520,1734759031954,-399.97,0.0002045,2]
[346154521,1734759031964,-150.74,0.00020562,30]
[346154522,1734759031974,-23900.0,0.0002059,2]
[346154523,1734759031983,-500.0,0.00020614,2]
[346154524,1734759031992,-800.0,0.00020614,2]
[346154525,1734759032001,-168.21,0.00020725,2]
[346154526,1734759032011,-293.0,0.00020747,2]
[346154527,1734759032020,-150.0,0.00020806,4]
[346154528,1734759032030,-1000.0,0.000209,2]
[346154529,1734759032040,-866.61,0.00020961,2]
[346154530,1734759032049,-150.0,0.00020989,2]
[346154531,1734759032059,-25296.0,0.00021,2]
[346154532,1734759032068,-20000.0,0.00021,2]
[346154533,1734759032078,-10849.97399613,0.00021,2]
[346154534,1734759032088,-991.19,0.00021,2]
[346154536,1734759032097,-714.7242,0.00021028,2]
[346154538,1734759032106,-993.95,0.00021123,2]
[346154540,1734759032116,-12577.39317917,0.00021128,2]
[346154541,1734759032125,-1017.19,0.00021128,2]
[346154542,1734759032134,-1011.48,0.0002114,2]
[346154543,1734759032143,-1009.13,0.0002114,2]
[346154544,1734759032153,-1015.33,0.0002114,2]
[346154545,1734759032162,-1001.65,0.00021162,2]
[346154546,1734759032171,-1005.21,0.00021162,2]
[346154547,1734759032180,-983.66,0.00021162,2]
[346154548,1734759032190,-989.16,0.00021162,2]
[346154549,1734759032358,-990.41,0.00021162,2]
[346154550,1734759032368,-990.28,0.00021162,2]
[346154551,1734759032377,-1005.57,0.00021178,2]
[346154552,1734759032387,-993.26,0.00021178,2]
[346154553,1734759032396,-998.96,0.00021178,2]
[346154554,1734759032406,-1010.45,0.00021178,2]
[346154555,1734759032416,-1004.97,0.00021178,2]
[346154556,1734759032425,-985.5,0.00021178,2]
[346154557,1734759032434,-981.95,0.00021178,2]
[346154558,1734759032443,-995.29,0.00021178,2]
[346154559,1734759032452,-989.72,0.00021178,2]
[346154560,1734759032462,-1009.39,0.0002118,2]
[346154561,1734759032471,-984.86,0.00021216,2]
[346154562,1734759032480,-997.72,0.00021226,2]
[346154563,1734759032489,-983.93,0.00021229,2]
[346154564,1734759032499,-1008.78,0.00021229,2]
[346154565,1734759032508,-190.92,0.0002124,2]
[346154566,1734759032517,-994.96510606,0.00021246,2]
[346154567,1734759032528,-2457.74725803,0.00021359,2]
[346154568,1734759032537,-2457.74725804,0.00021359,2]
[346154569,1734759032547,-150.0,0.00021368,4]
[346154570,1734759032556,-150.0,0.00021368,4]
[346154571,1734759032565,-150.0,0.00021368,4]
[346154572,1734759032575,-406.0,0.0002137,4]
[346154573,1734759032585,-589.304,0.0002137,2]
[346154574,1734759032595,-615.65738111,0.00021398,2]
[346154575,1734759032605,-156.1195,0.00021399,2]
[346154576,1734759032615,-647.987,0.00021399,2]
[346154577,1734759032625,-2500.0,0.00021399,2]
[346154578,1734759032635,-754.6840955,0.000214,2]
[346154579,1734759032645,-500.0,0.00021419,2]
[346154580,1734759032654,-500.0,0.00021419,2]
[346154581,1734759032664,-503.65204329,0.00021419,2]
[346154582,1734759032674,-500.0,0.00021419,2]
[346154583,1734759032684,-500.0,0.00021419,2]
[346154584,1734759032693,-500.0,0.00021419,2]
[346154585,1734759032702,-5000.0,0.00021421,2]
[346154586,1734759032712,-615.65738106,0.00021422,2]
[346154587,1734759032721,-754.68409545,0.00021423,2]
[346154588,1734759032731,-615.65738106,0.00021445,2]
[346154589,1734759032740,-754.68409545,0.00021447,2]
[346154590,1734759032750,-615.65738106,0.00021469,2]
[346154591,1734759032763,-754.68409545,0.0002147,2]
[346154592,1734759032773,-13666.998,0.0002148,2]
[346154593,1734759032784,-615.65738106,0.00021492,2]
[346154594,1734759032794,-754.68409545,0.00021493,2]
[346154595,1734759032805,-927.91,0.00021498,2]
[346154596,1734759032815,-500.0,0.00021498,2]
[346154597,1734759032824,-1495.83,0.00021498,2]
[346154598,1734759032835,-2658.85,0.00021498,2]
[346154599,1734759032844,-1152.01,0.00021498,2]
[346154600,1734759032854,-500.0,0.00021498,2]
[346154601,1734759032863,-1874.31,0.00021498,2]
[346154602,1734759032872,-3520.46,0.00021498,2]
[346154603,1734759032882,-500.0,0.00021498,2]
[346154604,1734759032891,-1362.02992355,0.00021498,2]
[346154605,1734759032903,-585.19007645,0.00021498,2]
[346154606,1734759032912,-1075.78827534,0.00021498,2]
[346154607,1734759032924,-597.22343366,0.00021498,2]
[346154608,1734759032987,-500.0,0.00021498,2]
[346154609,1734759033924,-475.22000005,0.00021498,2]
[346154610,1734759033936,-75.13829095,0.00021498,2]
[346154611,1734759033946,-2290.09,0.00021498,2]
[346154612,1734759033955,-1634.77171065,0.00021498,2]
[346154613,1734759033968,-586.2,0.00021498,2]
[346154614,1734759033987,-1099.12828935,0.00021498,2]
[346154615,1734759033997,-1578.36,0.00021498,2]
[346154616,1734759034194,-2651.6,0.00021498,2]
[346154617,1734759034204,-2360.05,0.00021498,2]
[346154618,1734759034214,-4197.33,0.00021498,2]
[346154619,1734759034223,-587.14,0.00021498,2]
[346154620,1734759034233,-1655.11,0.00021498,2]
[346154621,1734759034242,-500.0,0.00021498,2]
[346154622,1734759034251,-541.53,0.00021498,2]
[346154623,1734759034261,-500.0,0.00021498,2]
[346154624,1734759034271,-1536.83,0.00021498,2]
[346154625,1734759034281,-14181.83,0.00021498,2]
[346154626,1734759034292,-508.56968089,0.00021498,2]
[346154627,1734759034302,-655.16,0.00021498,2]
[346154628,1734759034311,-500.0,0.00021498,2]
[346154629,1734759034321,-500.0,0.00021498,2]
[346154630,1734759034331,-1338.85,0.00021498,2]
[346154631,1734759034341,-1366.63,0.00021498,2]
[346154632,1734759034351,-500.0,0.00021498,2]
[346154633,1734759034360,-500.0,0.00021498,2]
[346154634,1734759034369,-505.27252061,0.00021498,2]
[346154635,1734759034379,-1505.35,0.00021498,2]
[346154636,1734759034388,-1051.77,0.00021498,2]
[346154637,1734759034398,-1995.3251,0.00021499,2]
[346154638,1734759034407,-1500.0,0.00021499,2]
[346154639,1734759034417,-1000.0,0.00021499,2]
[346154640,1734759034426,-98211.77460808,0.00021499,2]
[346154641,1734759034438,-7954.79029192,0.00021499,2]
[346154642,1734759034447,-2733.37,0.00021499,2]
[346154643,1734759034456,-1373.37156378,0.00021499,2]
[346154644,1734759034468,-301.40843622,0.00021499,2]
[346154645,1734759034478,-500.0,0.00021499,2]
[346154646,1734759034487,-802.3,0.00021499,2]
[346154647,1734759034496,-152.502649,0.00021499,2]
[346154648,1734759034506,-157.564533,0.00021499,2]
[346154649,1734759034515,-1729.788986,0.00021499,2]
[346154650,1734759034525,-923.35,0.00021499,2]
[346154651,1734759034539,-1956.98,0.00021499,2]
[346154652,1734759034549,-961.34,0.00021499,2]
[346154653,1734759034558,-1572.43,0.00021499,2]
[346154654,1734759034568,-2516.246787,0.00021499,2]
[346154655,1734759034577,-500.0,0.00021499,2]
[346154656,1734759034587,-2832.91,0.00021499,2]
[346154657,1734759034596,-1456.86,0.00021499,2]
[346154658,1734759034606,-695.74,0.00021499,2]
[346154659,1734759034615,-908.49,0.00021499,2]
[346154660,1734759034625,-2895.1,0.00021499,2]
[346154661,1734759034635,-500.0,0.00021499,2]
[346154662,1734759034645,-1201.85,0.00021499,2]
[346154663,1734759034654,-500.0,0.00021499,2]
[346154664,1734759034664,-500.0,0.00021499,2]
[346154665,1734759034674,-1104.51,0.00021499,2]
[346154666,1734759034683,-11462.66,0.00021499,2]
[346154667,1734759034693,-1550.12,0.00021499,2]
[346154668,1734759034702,-500.0,0.00021499,2]
[346154669,1734759034712,-1267.29,0.00021499,2]
[346154670,1734759034721,-1078.56,0.00021499,2]
[346154671,1734759034730,-500.0,0.00021499,2]
[346154672,1734759034739,-500.0,0.00021499,2]
[346154673,1734759034749,-1599.21,0.00021499,2]
[346154674,1734759034763,-11530.12,0.00021499,2]
[346154675,1734759034772,-500.0,0.00021499,2]
[346154676,1734759034782,-3155.1,0.00021499,2]
[346154677,1734759034792,-335.87476471,0.00021499,2]
[346154678,1734759034803,-17098.9848,0.000215,2]
[346154679,1734759034812,-500.0,0.000215,7]
[346154680,1734759034822,-500.0,0.000215,7]
[346154681,1734759034832,-500.0,0.000215,7]
[346154682,1734759034842,-500.0,0.000215,7]
[346154683,1734759034851,-500.0,0.000215,7]
[346154684,1734759034861,-500.0,0.000215,7]
[346154685,1734759034870,-500.0,0.000215,7]
[346154686,1734759034880,-500.0,0.000215,7]
[346154687,1734759034889,-500.0,0.000215,7]
[346154688,1734759034898,-500.0,0.000215,7]
[346154689,1734759034908,-500.0,0.000215,7]
[346154690,1734759034917,-500.0,0.000215,7]
[346154691,1734759034927,-500.0,0.000215,7]
[346154692,1734759034936,-500.0,0.000215,7]
[346154693,1734759034946,-500.0,0.000215,7]
[346154694,1734759034955,-772.72315,0.000215,2]
[346154695,1734759034965,-470.73,0.000215,7]
[346154696,1734759034975,-157.65,0.00021511,2]
[346154697,1734759034984,-615.65738106,0.00021516,2]
[346154698,1734759034994,-754.68409545,0.00021517,2]
[346154699,1734759035004,-500.0,0.0002152,2]
[346154700,1734759035013,-500.0,0.0002152,2]
[346154701,1734759035023,-566.20821458,0.0002152,2]
[346154702,1734759035032,-4491.14944905,0.0002152,2]
[346154703,1734759035042,-504.19159421,0.00021521,2]
[346154704,1734759035051,-500.0,0.00021521,2]
[346154705,1734759035061,-501.74705291,0.00021521,2]
[346154706,1734759035071,-500.0,0.00021521,2]
[346154707,1734759035081,-660.76,0.00021521,2]
[346154708,1734759035090,-500.0,0.00021521,2]
[346154709,1734759035099,-500.0,0.00021521,2]
[346154710,1734759035109,-503.0314234,0.00021521,2]
[346154711,1734759035118,-500.0,0.00021521,2]
[346154712,1734759035127,-250.42655516,0.00021521,2]
[346154713,1734759035137,-1109.43,0.00021521,2]
[346154714,1734759035146,-500.0,0.00021521,2]
[346154715,1734759035156,-500.0,0.00021521,2]
[346154716,1734759035166,-500.0,0.00021521,2]
[346154717,1734759035175,-500.0,0.00021521,2]
[346154718,1734759035185,-500.0,0.00021521,2]
[346154719,1734759035194,-500.0,0.00021521,2]
[346154720,1734759035204,-222.33259226,0.00021521,2]
[346154721,1734759035213,-535.02,0.00021521,2]
[346154722,1734759035222,-500.0,0.00021521,2]
[346154723,1734759035231,-500.0,0.00021521,2]
[346154724,1734759035241,-500.0,0.00021521,2]
[346154725,1734759035250,-500.0,0.00021521,2]
[346154726,1734759035260,-500.0,0.00021521,2]
[346154727,1734759035270,-500.0,0.00021521,2]
[346154728,1734759035279,-1078.6,0.00021521,2]
[346154729,1734759035288,-500.0,0.00021521,2]
[346154730,1734759035298,-500.0,0.00021521,2]
[346154731,1734759035308,-500.0,0.00021521,2]
[346154732,1734759035317,-503.89261592,0.00021521,2]
[346154733,1734759035326,-879.91,0.00021521,2]
[346154734,1734759035335,-502.85150078,0.00021521,2]
[346154735,1734759035345,-500.0,0.00021521,2]
[346154736,1734759035354,-500.0,0.00021521,2]
[346154737,1734759035363,-1115.0,0.00021521,2]
[346154738,1734759035372,-563.42557278,0.00021521,2]
[346154739,1734759035381,-500.0,0.00021521,2]
[346154740,1734759035391,-500.0,0.00021521,2]
[346154741,1734759035400,-500.0,0.00021521,2]
[346154742,1734759035409,-696.85,0.00021521,2]
[346154743,1734759035418,-500.0,0.00021521,2]
[346154744,1734759035428,-500.0,0.00021521,2]
[346154745,1734759035437,-500.0,0.00021521,2]
[346154746,1734759035447,-667.69,0.00021521,2]
[346154747,1734759035456,-500.0,0.00021521,2]
[346154748,1734759035466,-500.0,0.00021521,2]
[346154749,1734759035474,-500.0,0.00021521,2]
[346154750,1734759035484,-500.0,0.00021521,2]
[346154751,1734759035493,-500.0,0.00021521,2]
[346154752,1734759035503,-558.19,0.00021521,2]
[346154753,1734759035512,-893.89,0.00021521,2]
[346154754,1734759035522,-506.38465763,0.00021521,2]
[346154755,1734759035531,-500.0,0.00021521,2]
[346154756,1734759035541,-500.0,0.00021521,2]
[346154757,1734759035551,-504.00315508,0.00021521,2]
[346154758,1734759035560,-500.0,0.00021521,2]
[346154759,1734759035570,-500.0,0.00021521,2]
[346154760,1734759035579,-503.34590914,0.00021521,2]
[346154761,1734759035589,-500.0,0.00021521,2]
[346154762,1734759035598,-500.0,0.00021521,2]
[346154763,1734759035607,-865.15,0.00021521,2]
[346154764,1734759035616,-500.0,0.00021521,2]
[346154765,1734759035626,-500.0,0.00021521,2]
[346154766,1734759035635,-500.0,0.00021521,2]
[346154767,1734759035644,-301.17921868,0.00021521,2]
[346154768,1734759035653,-500.0,0.00021521,2]
[346154769,1734759035662,-500.0,0.00021521,2]
[346154770,1734759035672,-1051.6,0.00021521,2]
[346154771,1734759035681,-500.0,0.00021521,2]
[346154772,1734759035690,-500.0,0.00021521,2]
[346154773,1734759035700,-987.08,0.00021521,2]
[346154774,1734759035709,-500.0,0.00021521,2]
[346154775,1734759035718,-500.0,0.00021521,2]
[346154776,1734759035727,-500.0,0.00021521,2]
[346154777,1734759035736,-500.0,0.00021521,2]
[346154778,1734759035745,-500.0,0.00021521,2]
[346154779,1734759035756,-501.34349624,0.00021521,2]
[346154780,1734759035770,-500.0,0.00021521,2]
[346154781,1734759035779,-500.0,0.00021521,2]
[346154782,1734759035788,-505.31517297,0.00021521,2]
[346154783,1734759035797,-1060.21,0.00021521,2]
[346154784,1734759035808,-500.0,0.00021521,2]
[346154785,1734759035817,-500.0,0.00021521,2]
[346154786,1734759035826,-252.31008618,0.00021521,2]
[346154787,1734759035836,-500.0,0.00021521,2]
[346154788,1734759035846,-500.0,0.00021521,2]
[346154789,1734759035855,-500.0,0.00021521,2]
[346154790,1734759035864,-755.08,0.00021521,2]
[346154791,1734759035873,-500.0,0.00021521,2]
[346154792,1734759035883,-500.0,0.00021521,2]
[346154793,1734759035892,-500.0,0.00021521,2]
[346154794,1734759035901,-1010.54,0.00021521,2]
[346154795,1734759035910,-500.0,0.00021521,2]
[346154796,1734759035920,-500.0,0.00021521,2]
[346154797,1734759035929,-722.12,0.00021521,2]
[346154798,1734759035939,-553.58728036,0.00021521,2]
[346154799,1734759035948,-687.97,0.00021521,2]
[346154800,1734759035958,-1584.02,0.00021521,2]
[346154801,1734759035968,-500.0,0.00021521,2]
[346154802,1734759035977,-1569.83,0.00021521,2]
[346154803,1734759035987,-376.03169146,0.00021521,2]
[346154804,1734759035999,-500.0,0.00021521,2]
[346154805,1734759036022,-522.91160063,0.00021521,2]
[346154806,1734759036042,-837.88,0.00021521,2]
[346154807,1734759036063,-500.0,0.00021521,2]
[346154808,1734759036086,-500.0,0.00021521,2]
[346154809,1734759036108,-500.0,0.00021521,2]
[346154810,1734759036130,-500.0,0.00021521,2]
[346154811,1734759036151,-1032.95,0.00021521,2]
[346154812,1734759036174,-500.35277936,0.00021521,2]
[346154813,1734759036186,-577.06,0.00021521,2]
[346154814,1734759036195,-977.93,0.00021521,2]
[346154815,1734759036204,-760.55,0.00021521,2]
[346154816,1734759036214,-500.0,0.00021521,2]
[346154817,1734759036223,-874.55,0.00021521,2]
[346154818,1734759036233,-595.64,0.00021521,2]
[346154819,1734759036242,-895.32,0.00021521,2]
[346154820,1734759036251,-500.0,0.00021521,2]
[346154821,1734759036262,-542.57,0.00021521,2]
[346154822,1734759036271,-500.0,0.00021521,2]
[346154823,1734759036281,-971.28,0.00021521,2]
[346154824,1734759036291,-8221.78,0.00021521,2]
[346154825,1734759036300,-723.17,0.00021521,2]
[346154826,1734759036310,-500.0,0.00021521,2]
[346154827,1734759036319,-500.0,0.00021521,2]
[346154828,1734759036328,-1694.3,0.00021521,2]
[346154829,1734759036338,-500.0,0.00021521,2]
[346154830,1734759036348,-938.17,0.00021521,2]
[346154831,1734759036357,-500.0,0.00021521,2]
[346154832,1734759036367,-500.0,0.00021521,2]
[346154833,1734759036376,-500.0,0.00021521,2]
[346154834,1734759036385,-806.99,0.00021521,2]
[346154835,1734759036395,-500.0,0.00021521,2]
[346154836,1734759036404,-500.0,0.00021521,2]
[346154837,1734759036413,-658.97,0.00021521,2]
[346154838,1734759036423,-500.0,0.00021521,2]
[346154839,1734759036432,-500.0,0.00021521,2]
[346154840,1734759036441,-1593.84,0.00021521,2]
[346154841,1734759036450,-500.0,0.00021521,2]
[346154842,1734759036459,-500.0,0.00021521,2]
[346154843,1734759036468,-2269.06,0.00021521,2]
[346154844,1734759036611,-500.0,0.00021521,2]
[346154845,1734759036621,-500.0,0.00021521,2]
[346154846,1734759036631,-2180.45,0.00021521,2]
[346154847,1734759036640,-500.0,0.00021521,2]
[346154848,1734759036649,-782.71,0.00021521,2]
[346154849,1734759036659,-935.85,0.00021521,2]
[346154850,1734759036669,-637.11,0.00021521,2]
[346154851,1734759036678,-1161.51,0.00021521,2]
[346154852,1734759036687,-500.0,0.00021521,2]
[346154853,1734759036697,-976.14,0.00021521,2]
[346154854,1734759036706,-504.80881493,0.00021521,2]
[346154855,1734759036715,-822.66,0.00021521,2]
[346154856,1734759036724,-501.68389073,0.00021521,2]
[346154857,1734759036734,-502.78338787,0.00021521,2]
[346154858,1734759036743,-1332.14,0.00021521,2]
[346154859,1734759036754,-810.66,0.00021521,2]
[346154860,1734759036767,-1519.74,0.00021521,2]
[346154861,1734759036776,-293.02915571,0.00021521,2]
[346154862,1734759036787,-748.18,0.00021521,2]
[346154863,1734759036797,-1636.38,0.00021521,2]
[346154864,1734759036807,-1194.49,0.00021521,2]
[346154865,1734759036816,-774.27,0.00021521,2]
[346154866,1734759036826,-501.58570271,0.00021521,2]
[346154867,1734759036836,-502.3551018,0.00021521,2]
[346154868,1734759036845,-898.82,0.00021521,2]
[346154869,1734759036855,-500.0,0.00021521,2]
[346154870,1734759036863,-500.0,0.00021521,2]
[346154871,1734759036873,-500.0,0.00021521,2]
[346154872,1734759036882,-1342.04,0.00021521,2]
[346154873,1734759036891,-1670.59,0.00021521,2]
[346154874,1734759036900,-1868.55,0.00021521,2]
[346154875,1734759036909,-500.0,0.00021521,2]
[346154876,1734759036919,-500.0,0.00021521,2]
[346154877,1734759036928,-1073.72,0.00021521,2]
[346154878,1734759036937,-3439.14,0.00021521,2]
[346154879,1734759036946,-500.0,0.00021521,2]
[346154880,1734759036955,-500.0,0.00021521,2]
[346154881,1734759036963,-500.0,0.00021521,2]
[346154882,1734759036972,-968.83,0.00021521,2]
[346154883,1734759036981,-500.0,0.00021521,2]
[346154884,1734759036990,-1506.18,0.00021521,2]
[346154885,1734759037000,-500.0,0.00021521,2]
[346154886,1734759037009,-833.21,0.00021521,2]
[346154887,1734759037018,-500.0,0.00021521,2]
[346154888,1734759037027,-258.80199936,0.00021521,2]
[346154889,1734759037039,-501.71846147,0.00021521,2]
[346154890,1734759037048,-408.78160974,0.00021521,2]
[346154891,1734759037057,-1209.23,0.00021521,2]
[346154892,1734759037067,-274.99177056,0.00021521,2]
[346154893,1734759037076,-500.0,0.00021521,2]
[346154894,1734759037085,-500.0,0.00021521,2]
[346154895,1734759037094,-615.65738106,0.00021539,2]
[346154896,1734759037104,-754.68409545,0.0002154,2]
[346154897,1734759037113,-615.65738106,0.00021563,2]
[346154898,1734759037123,-754.68409545,0.00021563,2]
[346154899,1734759037132,-615.65738106,0.00021586,2]
[346154900,1734759037141,-754.68409545,0.00021587,2]
[346154901,1734759037151,-1500.0,0.00021592,2]
[346154902,1734759037160,-150.654173,0.00021597,2]
[346154903,1734759037169,-156.990062,0.00021597,2]
[346154904,1734759037179,-183.37862645,0.00021597,2]
[346154905,1734759037188,-2163.08,0.00021597,2]
[346154906,1734759037197,-2543.32,0.00021597,2]
[346154907,1734759037206,-876.4,0.00021597,2]
[346154908,1734759037216,-1607.23,0.00021597,2]
[346154909,1734759037225,-4286.12,0.00021597,2]
[346154910,1734759037234,-4690.02,0.00021597,2]
[346154911,1734759037244,-1196.33,0.00021597,2]
[346154912,1734759037253,-500.0,0.00021597,2]
[346154913,1734759037262,-860.94,0.00021597,2]
[346154914,1734759037271,-1391.32,0.00021597,2]
[346154915,1734759037280,-1717.68,0.00021597,2]
[346154916,1734759037290,-2709.34,0.00021597,2]
[346154917,1734759037299,-1369.59,0.00021597,2]
[346154918,1734759037308,-2683.53,0.00021597,2]
[346154919,1734759037317,-2211.58,0.00021597,2]
[346154920,1734759037327,-4646.41,0.00021597,2]
[346154921,1734759037336,-3294.2,0.00021597,2]
[346154923,1734759037345,-6424.34,0.00021597,2]
[346154924,1734759037354,-2805.23,0.00021597,2]